bitfinex-derivatives/quotes_SOLF0:USTF0_20241029
["timestamp","ask_amount","ask_price","bid_price","bid_amount"]
[1730228113921,13.19473285,182.04,181.94,13.19473285]
[1730228114125,4.82,182.03,181.94,13.19473285]
[1730228114435,13.19473285,182.07,181.94,13.19473285]
[1730228114633,4.82,182.06,181.95,21.1221252]
[1730228114939,2.7473,182.01,181.95,21.1221252]
[1730228115133,4.82,182.0,181.95,21.1221252]
[1730228115331,2.6034,182.08,181.95,21.1221252]
[1730228115332,4.82,181.99,181.95,21.1221252]
[1730228115633,4.82,181.99,181.89,21.1221252]
[1730228115829,4.82,181.99,181.84,7.2599]
[1730228116032,2.748,181.96,181.89,21.1221252]
[1730228116431,7.568,181.96,181.89,21.1221252]
[1730228116627,2.7482,181.95,181.89,21.1221252]
[1730228116838,21.1221252,182.06,181.92,21.1221252]
[1730228117239,4.82,182.05,181.92,21.1221252]
[1730228117437,4.82,182.04,181.92,21.1221252]
[1730228117839,2.7478,181.98,181.92,21.1221252]
[1730228118045,4.82,181.97,181.92,21.1221252]
[1730228118931,7.5678,181.97,181.92,21.1221252]
[1730228119131,2.7478,181.97,181.92,21.1221252]
[1730228119428,4.82,181.98,181.92,21.1221252]
[1730228119639,2.748,181.96,181.92,21.1221252]
[1730228121137,21.1221252,182.06,181.92,21.1221252]
[1730228121337,2.7478,181.97,181.92,21.1221252]
[1730228121631,4.82,181.99,181.95,21.1221252]
[1730228122738,4.82,181.99,181.89,21.1221252]
[1730228122940,2.7485,181.93,181.89,21.1221252]
[1730228123133,2.7485,181.93,181.87,2.7493]
[1730228123134,4.82,181.94,181.87,21.1221252]
[1730228123338,4.82,181.93,181.9,21.1221252]
[1730228124040,2.7486,181.92,181.9,21.1221252]
[1730228124945,4.82,181.95,181.9,21.1221252]
[1730228125136,2.7482,181.95,181.9,21.1221252]
[1730228125544,2.7482,181.95,181.9,23.8708252]
[1730228126546,2.7482,181.94,181.9,21.1221252]
[1730228126843,2.70353801,182.01,181.93,21.1221252]
[1730228127050,2.7475,181.99,181.96,21.1221252]
[1730228127345,4.82,182.03,181.98,21.1221252]
[1730228127743,2.7471,182.02,181.98,21.1221252]
[1730228127939,4.82,182.03,181.98,21.1221252]
[1730228128146,2.7467,182.05,181.98,21.1221252]
[1730228128347,4.82,182.03,181.98,21.1221252]
[1730228128647,2.7472,182.01,181.98,21.1221252]
[1730228129247,4.82,182.03,181.98,21.1221252]
[1730228129248,2.7471,182.02,181.98,21.1221252]
[1730228129446,4.82,182.03,181.98,21.1221252]
[1730228129839,2.7472,182.02,181.98,21.1221252]
[1730228130344,2.7473,182.01,181.98,21.1221252]
[1730228130545,4.82,182.03,181.98,21.1221252]
[1730228131844,1.3153,182.07,181.98,21.1221252]
[1730228132047,4.82,182.03,181.98,21.1221252]
[1730228133254,7.5669,182.04,182.01,21.1221252]
[1730228133455,1.3153,182.07,182.01,21.1221252]
[1730228133658,1.2834,182.08,182.01,21.1221252]
[1730228133862,1.2828,182.1,182.03,21.1221252]
[1730228133863,4.82,182.1,182.03,21.1221252]
[1730228134558,4.82,182.1,182.0,23.8694252]
[1730228134850,4.82,182.1,182.0,21.1221252]
[1730228135055,2.747,182.03,182.0,21.1221252]
[1730228135355,4.82,182.05,182.0,21.1221252]
[1730228135749,4.82,182.05,181.97,21.1221252]
[1730228135955,2.7474,182.0,181.94,261.10774801]
[1730228136459,2.7474,182.0,181.96,13.20123583]
[1730228137161,4.82,182.05,181.96,13.20123583]
[1730228137557,14.44943583,182.04,181.94,247.99585864]
[1730228137860,14.44943583,182.04,181.87,1.211]
[1730228137861,13.20123583,182.02,181.91,13.20123583]
[1730228138454,21.13488411,182.03,181.89,25.95488411]
[1730228139071,2.7481,181.96,181.9,2.7487]
[1730228139561,2.7481,181.96,181.89,25.95488411]
[1730228139562,4.82,181.99,181.95,21.13488411]
[1730228139766,4.82,182.0,181.95,21.13488411]
[1730228140161,4.82,182.0,181.92,21.13488411]
[1730228141262,2.7476,181.99,181.93,2.7484]
[1730228141562,7.70583626,182.07,181.96,21.13488411]
[1730228141752,2.7468,182.04,181.97,2.7477]
[1730228142065,7.70583626,182.07,181.97,2.7477]
[1730228142265,2.7472,182.02,181.96,23.88278411]
[1730228143763,2.7473,182.01,181.96,21.13488411]
[1730228143960,7.70583626,182.07,181.99,21.13488411]
[1730228144159,4.94,182.07,181.99,21.13488411]
[1730228144765,2.71144577,182.06,181.99,21.13488411]
[1730228144953,2.7472,182.02,181.99,21.13488411]
[1730228146463,2.7472,182.02,181.96,23.88278411]
[1730228147559,2.71144577,182.06,181.96,21.13488411]
[1730228147863,2.71144577,182.06,181.92,21.13488411]
[1730228147864,6.49162354,182.11,182.01,21.13488411]
[1730228148065,4.94,182.1,182.01,21.13488411]
[1730228148259,2.7465,182.06,182.01,21.13488411]
[1730228149370,4.94,182.05,181.99,21.13488411]
[1730228149664,2.7468,182.04,181.99,23.88228411]
[1730228150371,2.7468,182.04,181.99,21.13488411]
[1730228150670,2.7469,182.03,181.99,21.13488411]
[1730228151367,4.94,182.09,182.01,21.13488411]
[1730228152067,4.94,182.09,182.01,23.88208411]
[1730228152263,4.94,182.09,182.01,21.13488411]
[1730228153262,2.7464,182.07,182.01,23.88198411]
[1730228153970,4.94,182.09,182.01,23.88198411]
[1730228154175,2.7464,182.06,182.01,23.88198411]
[1730228155572,2.7466,182.05,182.01,23.88198411]
[1730228156566,2.7468,182.04,181.99,2.7474]
[1730228157071,4.94,182.04,181.96,2.5092]
[1730228157776,2.7473,182.01,181.96,5.257]
[1730228157969,4.94,182.04,181.96,5.257]
[1730228158173,4.94,182.04,181.96,2.5092]
[1730228158375,2.7475,182.0,181.96,2.5092]
[1730228159082,26.07488411,182.04,181.89,233.58329246]
[1730228159273,2.748,181.96,181.9,22.38928411]
[1730228159576,4.94,181.99,181.95,2.748]
[1730228159773,7.6876,181.99,181.95,2.748]
[1730228160267,4.94,182.01,181.95,2.748]
[1730228160467,2.7476,181.99,181.94,2.7482]
[1730228161279,2.7477,181.98,181.94,2.7482]
[1730228161572,4.94,182.01,181.94,2.7482]
[1730228161879,2.7478,181.97,181.93,2.7484]
[1730228162563,2.7478,181.97,181.92,21.13488411]
[1730228162969,2.7478,181.97,181.93,2.7483]
[1730228163373,2.7478,181.97,181.92,21.13488411]
[1730228163977,2.7478,181.97,181.94,2.7482]
[1730228164178,2.7476,181.99,181.92,21.13488411]
[1730228164376,4.94,182.01,181.93,2.7484]
[1730228164583,4.94,182.06,181.95,21.13488411]
[1730228164777,4.94,182.05,181.95,21.13488411]
[1730228164979,4.94,182.05,181.97,2.7477]
[1730228165383,2.7471,182.02,181.95,21.13488411]
[1730228166474,4.94,182.05,181.97,2.7478]
[1730228166674,2.7472,182.01,181.95,21.13488411]
[1730228166881,2.7472,182.01,181.96,2.7479]
[1730228167478,2.7472,182.01,181.97,2.7478]
[1730228168577,2.7472,182.01,181.97,13.19881832]
[1730228168783,4.94,182.05,181.95,13.19881832]
[1730228168784,2.7476,181.99,181.95,13.19881832]
[1730228170289,2.7476,181.99,181.95,15.94691832]
[1730228172494,2.7473,182.01,181.97,13.19881832]
[1730228172893,4.8,182.02,181.97,13.19881832]
[1730228173090,7.5472,182.02,181.98,2.7476]
[1730228173297,4.8,182.02,181.97,13.19881832]
[1730228174396,2.7472,182.01,181.97,15.94661832]
[1730228175097,4.8,182.03,181.97,13.19881832]
[1730228175502,4.8,182.03,181.94,13.19881832]
[1730228175697,17.99881832,182.03,181.92,13.19881832]
[1730228176002,1.3223,182.02,181.92,13.19881832]
[1730228176192,2.6218,182.02,181.92,13.19881832]
[1730228177091,2.7478,181.97,181.92,15.94731832]
[1730228177293,4.8,181.98,181.92,13.19881832]
[1730228178099,2.748,181.96,181.92,13.19881832]
[1730228181505,2.7482,181.95,181.92,13.19881832]
[1730228182502,2.7482,181.95,181.92,15.94731832]
[1730228182708,2.748,181.96,181.92,15.94731832]
[1730228183908,2.7482,181.95,181.92,13.19881832]
[1730228184103,4.8,181.98,181.9,13.19881832]
[1730228184300,2.7484,181.94,181.9,13.19881832]
[1730228184911,2.7484,181.93,181.9,13.19881832]
[1730228185399,2.7484,181.93,181.89,236.33229246]
[1730228185605,2.7486,181.92,181.89,233.58329246]
[1730228185801,13.19881832,181.97,181.85,13.19881832]
[1730228186008,13.19881832,181.95,181.85,13.19881832]
[1730228186206,4.8,181.96,181.85,13.19881832]
[1730228187019,4.8,181.96,181.86,2.7493]
[1730228187809,2.7487,181.92,181.86,2.7493]
[1730228188012,4.8,181.96,181.86,2.7493]
[1730228189012,1.2878,181.95,181.86,2.7493]
[1730228189413,2.7488,181.91,181.86,2.7493]
[1730228189911,2.7488,181.91,181.88,13.19881832]
[1730228190109,2.7485,181.93,181.9,13.19881832]
[1730228190603,2.7486,181.92,181.9,13.19881832]
[1730228193213,4.8,181.94,181.9,13.19881832]
[1730228193617,4.8,181.94,181.88,13.19881832]
[1730228193818,2.7486,181.92,181.88,13.19881832]
[1730228195413,4.8,181.94,181.88,13.19881832]
[1730228195613,2.7487,181.91,181.88,13.19881832]
[1730228199013,4.8,181.94,181.88,13.19881832]
[1730228199206,2.7489,181.9,181.88,13.19881832]
[1730228200810,2.749,181.89,181.86,13.19881832]
[1730228201311,6.1243,181.94,181.86,13.19881832]
[1730228201515,7.3571,181.94,181.83,13.19881832]
[1730228201717,13.19881832,181.93,181.83,13.19881832]
[1730228202314,2.7494,181.87,181.83,13.19881832]
[1730228202913,2.7493,181.88,181.83,13.19881832]
[1730228203121,2.68337643,181.88,181.83,13.19881832]
[1730228203618,2.68337643,181.88,181.84,2.7497]
[1730228203823,13.19881832,181.93,181.84,13.19881832]
[1730228204019,2.7495,181.87,181.84,13.19881832]
[1730228206222,2.7493,181.87,181.84,13.19881832]
[1730228207518,2.7493,181.87,181.82,15.94881832]
[1730228207718,2.7495,181.86,181.82,15.94881832]
[1730228208128,13.19881832,181.93,181.82,15.94881832]
[1730228208322,2.7494,181.87,181.82,15.94881832]
[1730228210730,2.70267543,181.89,181.82,13.19881832]
[1730228211034,1.2732,181.88,181.82,13.19881832]
[1730228211232,2.81276404,181.87,181.82,13.19881832]
[1730228211427,2.7498,181.84,181.82,13.19881832]
[1730228213340,2.81276404,181.87,181.8,13.19881832]
[1730228213544,2.7499,181.83,181.8,13.19881832]
[1730228217043,2.7499,181.83,181.82,13.19881832]
[1730228218639,2.7499,181.83,181.82,8.45293]
[1730228219848,2.5571,181.94,181.82,8.45293]
[1730228220046,2.7489,181.9,181.89,8.45293]
[1730228220248,2.7489,181.9,181.87,8.45293]
[1730228220451,8.45293,181.92,181.87,8.45293]
[1730228220749,4.54,181.93,181.89,8.45293]
[1730228221848,2.7491,181.89,181.88,8.45293]
[1730228222545,2.7491,181.89,181.85,13.21642597]
[1730228223450,20.35169707,182.03,181.88,26.43285194]
[1730228223658,37.42302304,182.08,181.98,13.21642597]
[1730228223842,17.07132597,182.08,181.98,13.21642597]
[1730228224655,13.21642597,182.03,181.93,13.21642597]
[1730228224845,4.54,182.02,181.93,13.21642597]
[1730228225245,177.5375495,182.16,182.0,13.21642597]
[1730228225443,2.77197445,182.11,182.03,13.21642597]
[1730228225652,5.7852,182.12,182.03,13.21642597]
[1730228226140,8.53764769,182.12,182.03,13.21642597]
[1730228227046,2.7463,182.07,182.01,13.21642597]
[1730228228250,2.7463,182.07,181.99,7.2874]
[1730228228251,2.7463,182.07,182.03,13.21642597]
[1730228237053,2.7467,182.05,182.03,13.21642597]
[1730228237654,2.7467,182.05,182.0,13.21642597]
[1730228240555,4.46,182.1,182.04,13.21642597]
[1730228240751,2.7462,182.08,182.04,13.21642597]
[1730228242668,4.46,182.1,181.97,3.7866]
[1730228242959,4.46,182.1,182.01,13.21642597]
[1730228243161,4.46,182.1,181.97,3.7866]
[1730228243357,4.46,182.1,182.02,13.21642597]
[1730228243863,2.7464,182.07,182.02,13.21642597]
[1730228246566,4.46,182.1,182.06,8.44155877]
[1730228246762,4.46,182.1,181.61,2.52746517]
[1730228246763,16.5,182.07,181.69,59.36]
[1730228246971,5.0,182.09,181.69,345.0]
[1730228246973,2.7475,181.99,181.69,345.0]
[1730228247261,2.7475,181.99,181.32,8.44155877]
[1730228247262,130.0,181.98,181.32,8.44155877]
[1730228247561,130.0,181.98,181.17,63.33860711]
[1730228247562,8.44155877,181.59,181.48,8.44155877]
[1730228247770,13.7426,181.93,181.44,2.7557]
[1730228247771,8.44155877,181.6,181.44,2.7557]
[1730228248066,2.7544,181.54,181.43,2.543]
[1730228248265,19.23679567,181.6,181.43,2.543]
[1730228248458,16.5,181.58,181.43,2.543]
[1730228248654,21.18417667,181.55,181.43,2.543]
[1730228248865,34.74961041,181.54,181.39,2.95288104]
[1730228249164,37.50421041,181.53,181.4,10.34]
[1730228249362,34.74961041,181.52,181.4,10.34]
[1730228249668,34.74961041,181.51,181.38,10.34]
[1730228249962,21.18417667,181.56,181.4,0.43257306]
[1730228250168,21.18417667,181.6,181.41,27.96025226]
[1730228250364,21.18417667,181.6,181.38,10.34]
[1730228250365,21.18417667,181.6,181.45,0.43257306]
[1730228250567,21.18417667,181.6,181.46,10.34]
[1730228250870,16.5,181.66,181.55,0.43146004]
[1730228251056,21.18417667,181.6,181.58,0.43146004]
[1730228251256,21.18417667,181.6,181.48,10.36]
[1730228251456,37.68417667,181.6,181.49,10.47610694]
[1730228251662,37.68417667,181.6,181.5,10.47610694]
[1730228251862,37.68417667,181.6,181.47,10.36]
[1730228252264,37.68417667,181.6,181.44,21.18417667]
[1730228252461,37.68417667,181.6,181.45,10.36]
[1730228252862,21.18417667,181.6,181.45,10.36]
[1730228255971,21.18417667,181.57,181.46,10.3]
[1730228256665,21.18417667,181.57,181.47,10.3]
[1730228257268,21.18417667,181.57,181.42,2.18224503]
[1730228257458,21.18417667,181.57,181.43,2.7558]
[1730228257663,21.18417667,181.6,181.44,31.48417667]
[1730228258061,21.18417667,181.6,181.45,2.7556]
[1730228258265,21.18417667,181.6,181.44,31.48417667]
[1730228259275,21.18417667,181.63,181.47,21.18417667]
[1730228259480,23.99161521,181.63,181.47,21.18417667]
[1730228259671,21.18417667,181.63,181.47,21.18417667]
[1730228260274,21.18417667,181.63,181.48,2.7552]
[1730228260674,21.18417667,181.63,181.47,21.18417667]
[1730228260877,21.18417667,181.63,181.49,2.755]
[1730228261278,21.18417667,181.63,181.5,21.18417667]
[1730228261976,21.18417667,181.66,181.5,21.18417667]
[1730228262171,23.9280139,181.66,181.5,23.93907667]
[1730228263076,21.18417667,181.63,181.5,21.18417667]
[1730228263780,21.18417667,181.63,181.47,22.47217667]
[1730228264180,21.18417667,181.63,181.48,9.92]
[1730228264480,21.18417667,181.6,181.49,9.92]
[1730228264680,21.18417667,181.6,181.47,1.288]
[1730228264979,21.18417667,181.6,181.48,9.92]
[1730228265283,21.18417667,181.6,181.47,1.288]
[1730228265488,21.18417667,181.54,181.4,21.18417667]
[1730228265782,21.18417667,181.54,181.4,31.10417667]
[1730228266289,23.87891659,181.54,181.4,31.10417667]
[1730228267076,40.37891659,181.54,181.4,21.18417667]
[1730228267282,0.51646947,181.4,181.38,9.92]
[1730228267683,0.51646947,181.4,181.38,12.6767]
[1730228268893,0.51646947,181.4,181.37,21.18417667]
[1730228269076,0.51646947,181.4,181.37,12.6769]
[1730228269276,0.51646947,181.4,181.34,90.62417667]
[1730228270290,0.51646947,181.4,181.35,2.7572]
[1730228270591,0.51646947,181.4,181.34,80.70417667]
[1730228270791,0.51646947,181.4,181.34,59.52]
[1730228271989,0.51646947,181.4,181.33,2.7575]
[1730228272386,0.51646947,181.4,181.32,21.18417667]
[1730228273094,21.18417667,181.48,181.32,21.18417667]
[1730228273690,21.18417667,181.48,181.35,2.7571]
[1730228273897,21.18417667,181.47,181.32,21.18417667]
[1730228274294,21.18417667,181.47,181.35,2.757]
[1730228274998,21.18417667,181.44,181.25,59.54]
[1730228275294,21.18417667,181.44,181.29,21.18417667]
[1730228275494,2.80598634,181.43,181.29,21.18417667]
[1730228275694,21.18417667,181.47,181.29,21.18417667]
[1730228276292,21.18417667,181.44,181.33,2.7575]
[1730228277195,21.18417667,181.44,181.29,21.18417667]
[1730228277196,23.89897822,181.44,181.31,2.7577]
[1730228277405,23.89897822,181.44,181.29,21.18417667]
[1730228277794,23.89897822,181.44,181.31,2.7577]
[1730228278000,21.18417667,181.41,181.29,21.18417667]
[1730228278394,21.18417667,181.41,181.31,2.7577]
[1730228279094,21.18417667,181.41,181.32,2.7576]
[1730228279493,2.71480155,181.44,181.29,21.18417667]
[1730228279494,23.89897822,181.44,181.29,21.18417667]
[1730228279695,21.18417667,181.41,181.29,21.18417667]
[1730228279899,21.18417667,181.41,181.3,9.2]
[1730228280502,21.18417667,181.41,181.31,2.7578]
[1730228281508,21.18417667,181.41,181.3,9.2]
[1730228282095,23.89897822,181.44,181.3,9.2]
[1730228282302,21.18417667,181.44,181.3,9.2]
[1730228282806,23.92163235,181.44,181.3,9.2]
[1730228283008,23.92163235,181.44,181.33,2.7575]
[1730228283310,40.42163235,181.44,181.33,2.7575]
[1730228284110,40.42163235,181.44,181.35,2.757]
[1730228284306,40.42163235,181.44,181.31,9.2]
[1730228284508,40.42163235,181.44,181.32,21.18417667]
[1730228284807,40.42163235,181.44,181.35,2.7571]
[1730228285009,40.42163235,181.44,181.31,9.2]
[1730228285213,40.42163235,181.44,181.34,2.7573]
[1730228285401,40.42163235,181.44,181.31,9.2]
[1730228285911,40.42163235,181.44,181.29,21.18417667]
[1730228285912,40.42163235,181.44,181.3,8.86]
[1730228286216,40.42163235,181.44,181.32,2.7576]
[1730228286402,19.23745568,181.44,181.32,2.7576]
[1730228286601,13.25088866,181.41,181.3,22.11088866]
[1730228287413,13.25088866,181.41,181.3,21.69254839]
[1730228287914,13.25088866,181.41,181.33,2.7573]
[1730228288112,13.25088866,181.43,181.32,13.25088866]
[1730228289108,13.25088866,181.43,181.34,2.7573]
[1730228289306,13.25088866,181.39,181.25,59.54]
[1730228289511,30.08659943,181.39,181.28,13.25088866]
[1730228289903,30.08659943,181.39,181.3,13.25088866]
[1730228290308,16.83571077,181.39,181.32,2.7575]
[1730228290507,178.05861603,181.44,181.37,13.25088866]
[1730228290716,178.05861603,181.44,181.4,2.7563]
[1730228291011,178.05861603,181.44,181.39,13.25088866]
[1730228291412,178.05861603,181.44,181.39,12.24232621]
[1730228291610,178.05861603,181.44,181.37,13.25088866]
[1730228292717,178.05861603,181.44,181.41,2.7562]
[1730228292918,178.05861603,181.44,181.37,13.25088866]
[1730228293105,178.05861603,181.44,181.4,2.7564]
[1730228294316,178.05861603,181.44,181.39,13.25088866]
[1730228294816,178.05861603,181.44,181.42,2.7561]
[1730228295017,178.05861603,181.44,181.4,8.48]
[1730228295617,178.05861603,181.44,181.41,2.7562]
[1730228296707,178.05861603,181.44,181.35,15.78288866]
[1730228296906,178.05861603,181.44,181.36,8.48]
[1730228297417,180.81451603,181.44,181.36,8.48]
[1730228298613,2.7565,181.4,181.34,2.7572]
[1730228298816,13.25088866,181.43,181.32,21.73088866]
[1730228300222,180.75398026,181.44,181.34,13.25088866]
[1730228300223,178.05861603,181.44,181.34,13.25088866]
[1730228300620,2.7561,181.43,181.37,2.7569]
[1730228300923,178.05861603,181.44,181.37,2.7569]
[1730228302222,2.7561,181.42,181.37,2.7569]
[1730228302418,178.05861603,181.44,181.36,13.25088866]
[1730228303212,178.05861603,181.44,181.39,2.7565]
[1730228303417,194.02401111,181.44,181.34,8.48]
[1730228303619,191.30950469,181.44,181.34,8.48]
[1730228303823,2.756,181.43,181.37,2.7569]
[1730228306023,191.30950469,181.44,181.37,2.7569]
[1730228306219,2.7561,181.42,181.37,2.7569]
[1730228307027,2.756,181.43,181.37,2.7569]
[1730228307932,191.30950469,181.44,181.36,8.1]
[1730228308227,191.30950469,181.44,181.38,2.7566]
[1730228308732,194.06540469,181.44,181.38,2.7566]
[1730228309128,178.05861603,181.44,181.36,8.1]
[1730228309324,178.05861603,181.44,181.39,2.7564]
[1730228309526,178.05861603,181.44,181.36,21.35088866]
[1730228310530,178.05861603,181.44,181.41,2.7562]
[1730228311230,191.30950469,181.44,181.34,8.1]
[1730228311429,191.30950469,181.44,181.35,13.25088866]
[1730228311932,178.05861603,181.44,181.35,13.25088866]
[1730228312626,178.05861603,181.44,181.4,2.7563]
[1730228318131,178.05861603,181.44,181.39,7.76]
[1730228318332,178.05861603,181.44,181.4,2.7564]
[1730228318635,178.05861603,181.44,181.4,7.76]
[1730228319033,178.05861603,181.44,181.4,10.5163]
[1730228319240,178.05861603,181.44,181.4,7.76]
[1730228319534,178.05861603,181.44,181.41,2.7562]
[1730228324740,178.05861603,181.44,116.9,7.23541491]
[1730228324942,180.88341439,181.44,181.28,7.76]
[1730228325148,194.13430305,181.44,181.33,13.25088866]
[1730228325343,2.7561,181.43,181.38,2.7566]
[1730228325745,2.7561,181.43,181.37,21.01088866]
[1730228327043,178.05861603,181.44,181.37,21.01088866]
[1730228327246,180.81451603,181.44,181.39,2.7565]
[1730228327437,178.05861603,181.44,181.37,21.01088866]
[1730228327951,178.05861603,181.44,181.41,2.7561]
[1730228330649,178.05861603,181.44,181.37,13.25088866]
[1730228330855,2.756,181.43,181.38,10.1767]
[1730228331154,178.05861603,181.44,181.38,7.42]
[1730228331350,178.05861603,181.44,181.39,2.7565]
[1730228332352,11.14337851,181.43,181.39,2.7565]
[1730228332557,11.14337851,181.43,181.38,7.42]
[1730228332558,11.14337851,181.43,181.4,2.7564]
[1730228332956,11.14337851,181.43,181.38,7.42]
[1730228333149,11.14337851,181.43,181.39,2.7565]
[1730228336558,11.14337851,181.43,181.39,11.23103551]
[1730228344859,8.47453551,181.4,181.31,59.56]
[1730228345067,8.47453551,181.35,181.28,7.08]
[1730228345264,8.47453551,181.33,181.27,8.3301]
[1730228345465,8.47453551,181.33,181.29,2.7581]
[1730228345666,8.47453551,181.33,181.27,16.80463551]
[1730228346067,8.47453551,181.33,181.28,2.7581]
[1730228346268,8.47453551,181.32,181.27,15.55453551]
[1730228346470,11.17432692,181.34,181.3,8.47453551]
[1730228346672,11.17432692,181.34,181.31,2.7577]
[1730228346871,16.83476688,181.35,181.31,2.7577]
[1730228347477,16.83476688,181.35,181.33,2.7575]
[1730228350079,16.83476688,181.35,181.34,11.23183551]
[1730228352674,11.16588052,181.38,181.33,20.32643739]
[1730228353076,11.16588052,181.38,181.34,2.7573]
[1730228353276,11.16588052,181.38,181.33,20.32643739]
[1730228353680,11.16588052,181.38,181.35,2.7571]
[1730228356380,13.92268052,181.38,181.36,6.76]
[1730228356972,11.16588052,181.38,181.23,6.8041]
[1730228357178,11.16588052,181.38,181.29,13.24643739]
[1730228357383,11.16588052,181.38,181.3,6.76]
[1730228357785,2.7569,181.37,181.32,2.7576]
[1730228358172,11.16588052,181.38,181.34,13.24643739]
[1730228358373,11.16588052,181.38,181.35,2.7571]
[1730228359680,11.16588052,181.38,181.35,9.5171]
[1730228360283,11.16588052,181.38,181.35,6.76]
[1730228361780,11.16588052,181.38,181.35,9.5172]
[1730228362080,11.16588052,181.38,181.34,13.24643739]
[1730228362081,11.16588052,181.38,181.34,6.76]
[1730228363084,11.16588052,181.38,181.35,2.7572]
[1730228363475,11.16588052,181.38,181.34,6.76]
[1730228363680,11.16588052,181.38,181.35,2.7572]
[1730228364683,11.16588052,181.38,181.34,6.76]
[1730228364884,11.16588052,181.38,181.35,2.7571]
[1730228367485,278.21658754,181.39,181.36,2.7569]
[1730228369385,278.21658754,181.39,181.34,6.76]
[1730228369587,11.1691203,181.38,181.37,2.7569]
[1730228370094,11.1691203,181.38,181.36,2.757]
[1730228371985,11.1691203,181.38,181.35,2.7571]
[1730228372893,11.1691203,181.38,181.34,6.76]
[1730228373091,11.1691203,181.38,181.36,2.757]
[1730228373893,178.05861603,181.44,181.37,16.00333739]
[1730228374103,11.16901468,181.43,181.4,13.24643739]
[1730228374391,11.16901468,181.43,181.41,6.44]
[1730228374695,178.05861603,181.44,181.42,14.90980336]
[1730228374889,178.05861603,181.44,181.43,6.44]
[1730228375085,434.71341803,181.48,181.43,6.44]
[1730228375293,434.71341803,181.48,181.47,8.46980336]
[1730228377394,434.71341803,181.48,181.47,11.22520336]
[1730228379605,434.71341803,181.48,181.47,17.66520336]
[1730228382291,2.7548,181.51,181.47,17.66520336]
[1730228382906,1.9987,181.59,181.5,8.46980336]
[1730228383103,8.46980336,181.56,181.5,8.46980336]
[1730228383401,4.75855663,181.59,181.5,8.46980336]
[1730228383402,8.46980336,181.55,181.5,8.46980336]
[1730228383602,16.81733235,181.57,181.51,6.44]
[1730228383603,2.7546,181.52,181.51,6.44]
[1730228383992,16.81733235,181.53,181.51,6.44]
[1730228384191,19.57183235,181.53,181.51,6.44]
[1730228384392,19.57183235,181.53,181.5,6.44]
[1730228384595,10.70677672,181.52,181.5,6.44]
[1730228384810,10.70677672,181.52,181.51,8.46980336]
[1730228385312,10.70677672,181.52,181.51,6.44]
[1730228385498,10.70677672,181.52,181.51,14.90980336]
[1730228385699,19.57183235,181.53,181.51,14.90980336]
[1730228389608,19.57183235,181.53,181.51,14.58980336]
[1730228390102,11.6248,181.67,181.52,8.46980336]
[1730228390306,10.43770336,181.6,181.55,8.46980336]
[1730228390499,8.46980336,181.58,181.53,8.46980336]
[1730228390697,2.77860703,181.57,181.51,6.12]
[1730228390898,2.77860703,181.57,181.53,8.46980336]
[1730228391108,11.24841039,181.57,181.53,8.46980336]
[1730228391301,2.7543,181.55,181.49,2.755]
[1730228391497,2.7543,181.55,181.45,3.9779]
[1730228391498,8.46980336,181.51,181.47,6.12]
[1730228391705,11.18636944,181.51,181.47,6.12]
[1730228392007,2.7552,181.49,181.47,6.12]
[1730228392403,11.18636944,181.51,181.47,6.12]
[1730228392708,2.755,181.5,181.47,14.58980336]
[1730228393105,2.7552,181.49,181.47,14.58980336]
[1730228393509,8.46980336,181.51,181.47,14.58980336]
[1730228393716,8.46980336,181.49,117.56,0.22542842]
[1730228394010,8.46980336,181.46,181.41,8.46980336]
[1730228394210,2.7559,181.44,181.42,6.12]
[1730228394401,8.46980336,181.46,181.42,6.12]
[1730228395207,8.46980336,181.46,181.41,14.58980336]
[1730228395408,2.7559,181.44,181.41,8.46980336]
[1730228395608,2.7559,181.44,181.41,6.12]
[1730228395810,8.46980336,181.45,181.4,8.46980336]
[1730228396002,11.22550336,181.45,181.4,14.58980336]
[1730228396205,8.46980336,181.46,181.41,8.46980336]
[1730228396613,2.7558,181.45,181.4,6.12]
[1730228397014,5.50157824,181.45,181.4,6.12]
[1730228398411,5.50157824,181.45,181.4,8.8764]